bitfinex-derivatives/quotes_ETHF0:USTF0_20230105
["timestamp","ask_amount","ask_price","bid_price","bid_amount"]
[1672957127811,6.79845999,1252.7,1252.6,1.18977848]
[1672957128015,3.59065999,1252.7,1252.6,1.18977848]
[1672957128545,6.79845999,1252.7,1252.6,1.18977848]
[1672957129286,3.59065999,1252.7,1252.6,1.18977848]
[1672957129486,6.79845999,1252.7,1252.6,1.18977848]
[1672957129691,3.59065999,1252.7,1252.6,1.18977848]
[1672957130006,6.79845999,1252.7,1252.6,1.18977848]
[1672957130543,3.59065999,1252.7,1252.6,1.18977848]
[1672957130757,6.79845999,1252.7,1252.6,1.18977848]
[1672957135061,3.59065999,1252.7,1252.6,1.18977848]
[1672957135798,6.79845999,1252.7,1252.6,1.18977848]
[1672957136009,3.59065999,1252.7,1252.6,1.18977848]
[1672957136220,6.79845999,1252.7,1252.6,1.18977848]
[1672957138215,3.59065999,1252.7,1252.6,1.18977848]
[1672957138422,6.79845999,1252.7,1252.6,1.18977848]
[1672957138742,3.59065999,1252.7,1252.6,1.18977848]
[1672957138952,6.79845999,1252.7,1252.6,1.18977848]
[1672957139475,3.59065999,1252.7,1252.6,1.18977848]
[1672957139687,6.79845999,1252.7,1252.6,1.18977848]
[1672957139897,3.59065999,1252.7,1252.6,1.18977848]
[1672957140103,6.79845999,1252.7,1252.6,1.18977848]
[1672957146408,3.59065999,1252.7,1252.6,1.18977848]
[1672957146615,6.79845999,1252.7,1252.6,1.18977848]
[1672957147041,3.59065999,1252.7,1252.6,1.18977848]
[1672957147248,6.79845999,1252.7,1252.6,1.18977848]
[1672957147983,3.59065999,1252.7,1252.6,1.18977848]
[1672957148198,6.79845999,1252.7,1252.6,1.18977848]
[1672957150300,3.59065999,1252.7,1252.6,1.18977848]
[1672957150510,6.79845999,1252.7,1252.6,1.18977848]
[1672957151136,3.59065999,1252.7,1252.6,1.18977848]
[1672957151452,6.79845999,1252.7,1252.6,1.18977848]
[1672957153870,3.2078,1252.7,1252.6,1.18977848]
[1672957154187,7.39260168,1252.7,1252.6,1.18977848]
[1672957154399,10.98571082,1252.7,1252.6,1.18977848]
[1672957155132,7.77791082,1252.7,1252.6,1.18977848]
[1672957155972,10.98571082,1252.7,1252.6,1.18977848]
[1672957156705,6.80090914,1252.7,1252.6,1.18977848]
[1672957158603,3.59310914,1252.7,1252.6,1.18977848]
[1672957159120,6.80090914,1252.7,1252.6,1.18977848]
[1672957159443,3.59310914,1252.7,1252.6,1.18977848]
[1672957159756,6.80090914,1252.7,1252.6,1.18977848]
[1672957159966,3.59310914,1252.7,1252.6,1.18977848]
[1672957160701,6.80090914,1252.7,1252.6,1.18977848]
[1672957162587,3.59310914,1252.7,1252.6,1.18977848]
[1672957162797,6.80090914,1252.7,1252.6,1.18977848]
[1672957163116,3.59310914,1252.7,1252.6,1.18977848]
[1672957182992,3.59310914,1252.7,1252.6,2.98455881]
[1672957183204,3.59310914,1252.7,1252.6,1.18977848]
[1672957195392,3.59310914,1252.7,1252.6,2.98455881]
[1672957198646,3.59310914,1252.7,1252.6,1.18977848]
[1672957213680,3.59310914,1252.7,1252.6,2.98455881]
[1672957226502,3.59310914,1252.7,1252.5,2.97779796]
[1672957226718,10.98571082,1252.6,1252.5,1.18301763]
[1672957226929,6.80090914,1252.6,1252.5,1.18301763]
[1672957230506,3.59310914,1252.6,1252.5,1.18301763]
[1672957230717,6.80090914,1252.6,1252.5,1.18301763]
[1672957232509,3.59310914,1252.6,1252.5,1.18301763]
[1672957233034,6.80090914,1252.6,1252.5,1.18301763]
[1672957233238,6.80090914,1252.6,1252.4,1.79478033]
[1672957233451,2.99173625,1252.5,1252.4,1.79478033]
[1672957238387,3.59310914,1252.6,1252.3,4.18748922]
[1672957238388,6.80090914,1252.6,1252.3,4.18748922]
[1672957238601,10.98571082,1252.6,1252.2,4.18748922]
[1672957238813,5.38345168,1252.3,1252.2,4.18748922]
[1672957239128,2.39264519,1252.3,1252.2,1.79478033]
[1672957240390,2.39264519,1252.3,1252.2,4.18748922]
[1672957243438,2.39264519,1252.3,1252.2,1.79478033]
[1672957243754,2.39264519,1252.3,1252.2,4.18748922]
[1672957243963,2.39264519,1252.3,1252.2,1.79478033]
[1672957262463,5.38345168,1252.3,1252.2,1.79478033]
[1672957265204,2.99080649,1252.3,1252.2,1.79478033]
[1672957273189,2.99080649,1252.3,1252.2,4.18748922]
[1672957274446,5.38413545,1252.3,1252.2,2.39270889]
[1672957274659,2.39332896,1252.3,1252.2,2.39270889]
[1672957274872,5.38413545,1252.3,1252.2,2.39270889]
[1672957275185,2.99080649,1252.3,1252.2,2.39270889]
[1672957275814,2.99080649,1252.3,1252.2,3.80810308]
[1672957276974,2.99080649,1252.3,1252.2,2.39270889]
[1672957277171,2.99080649,1252.3,1252.2,3.80810308]
[1672957278538,2.99080649,1252.3,1252.2,2.39270889]
[1672957278855,2.99080649,1252.3,1252.2,3.80810308]
[1672957282222,2.99080649,1252.3,1252.2,2.39270889]
[1672957282646,2.99080649,1252.3,1252.2,3.80810308]
[1672957284333,2.99080649,1252.3,1252.2,2.39270889]
[1672957284638,2.99080649,1252.3,1252.2,3.80810308]
[1672957285282,2.99080649,1252.3,1252.2,2.39270889]
[1672957286525,2.99080649,1252.3,1252.2,3.80810308]
[1672957288224,2.99080649,1252.3,1252.2,2.39270889]
[1672957288437,2.99080649,1252.3,1252.2,3.80810308]
[1672957288960,2.99080649,1252.3,1252.2,2.39270889]
[1672957289391,2.99080649,1252.3,1252.2,3.80810308]
[1672957289808,2.99080649,1252.3,1252.2,2.39270889]
[1672957290014,2.99080649,1252.3,1252.2,3.80810308]
[1672957291695,2.98679669,1252.3,1252.2,3.80810308]
[1672957291907,2.98679669,1252.3,1252.2,2.39270889]
[1672957292117,2.98679669,1252.3,1252.2,3.80810308]
[1672957292842,2.98679669,1252.3,1252.2,2.39270889]
[1672957293052,2.98679669,1252.3,1252.2,3.80810308]
[1672957293795,2.98679669,1252.3,1252.2,2.39270889]
[1672957294215,2.98679669,1252.3,1252.2,3.80810308]
[1672957295162,2.98679669,1252.3,1252.2,2.39270889]
[1672957295365,2.98679669,1252.3,1252.2,3.80810308]
[1672957296005,2.98679669,1252.3,1252.2,2.39270889]
[1672957296626,2.98679669,1252.3,1252.2,3.80810308]
[1672957298099,2.98679669,1252.3,1252.2,5.38692414]
[1672957298411,2.98679669,1252.3,1252.2,6.80231833]
[1672957298622,2.98679669,1252.3,1252.2,3.80810308]
[1672957300093,2.98679669,1252.3,1252.2,6.80231833]
[1672957300307,2.98679669,1252.3,1252.2,5.38692414]
[1672957300626,2.98679669,1252.3,1252.2,3.80810308]
[1672957302304,2.98679669,1252.3,1252.2,2.39270889]
[1672957302722,2.98679669,1252.3,1252.2,3.80810308]
[1672957307562,2.98679669,1252.3,1252.2,6.80231833]
[1672957307981,2.98679669,1252.3,1252.2,5.38692414]
[1672957308188,2.98679669,1252.3,1252.2,6.80231833]
[1672957308401,2.98679669,1252.3,1252.2,3.80810308]
[1672957309141,2.98679669,1252.3,1252.2,6.80231833]
[1672957310511,2.98679669,1252.3,1252.2,5.38692414]
[1672957310826,2.98679669,1252.3,1252.2,6.80231833]
[1672957312090,2.98679669,1252.3,1252.2,2.39270889]
[1672957312295,2.98679669,1252.3,1252.2,3.80810308]
[1672957313028,6.80090914,1252.4,1252.2,4.18969917]
[1672957313234,6.80090914,1252.4,1252.2,4.18986573]
[1672957313457,3.59310914,1252.4,1252.2,4.18986573]
[1672957313768,6.80090914,1252.4,1252.2,4.18986573]
[1672957314086,6.80090914,1252.4,1252.3,1.79715684]
[1672957314709,6.80090914,1252.4,1252.2,4.18986573]
[1672957315557,2.99408162,1252.3,1252.2,4.18986573]
[1672957318079,2.99408162,1252.3,1252.2,2.39270889]
[1672957346554,6.80090914,1252.4,1252.2,4.18926805]
[1672957346766,3.59310914,1252.4,1252.3,1.19770587]
[1672957346976,6.80090914,1252.4,1252.3,1.19770587]
[1672957347816,3.59310914,1252.4,1252.3,1.19770587]
[1672957348136,6.80090914,1252.4,1252.3,1.19770587]
[1672957352231,3.59310914,1252.4,1252.3,1.19770587]
[1672957352435,6.80090914,1252.4,1252.3,1.19770587]
[1672957355174,3.59310914,1252.4,1252.3,1.19770587]
[1672957355376,6.80090914,1252.4,1252.3,1.19770587]
[1672957356853,10.98571082,1252.4,1252.2,2.99426503]
[1672957357903,6.80090914,1252.4,1252.3,1.19770587]
[1672957358114,6.80090914,1252.4,1252.2,1.79655916]
[1672957358115,6.80090914,1252.4,1252.2,2.99426503]
[1672957358325,10.98571082,1252.4,1252.2,2.99426503]
[1672957358535,3.2078,1252.3,1252.2,2.99426503]
[1672957358756,6.80090914,1252.3,1252.2,2.99426503]
[1672957358958,3.2078,1252.3,1252.2,2.99426503]
[1672957359168,7.77791082,1252.4,1252.2,2.99426503]
[1672957359482,3.2078,1252.3,1252.2,2.99426503]
[1672957360521,6.80090914,1252.4,1252.2,2.99426503]
[1672957361799,3.59310914,1252.4,1252.2,2.99426503]
[1672957362000,6.80090914,1252.4,1252.2,2.99426503]
[1672957362203,3.59310914,1252.4,1252.2,2.99426503]
[1672957362419,6.80090914,1252.4,1252.2,2.99426503]
[1672957362741,3.59310914,1252.4,1252.2,2.99426503]
[1672957363049,6.80090914,1252.4,1252.2,2.99426503]
[1672957363690,3.59310914,1252.4,1252.2,2.99426503]
[1672957364004,6.80090914,1252.4,1252.2,2.99426503]
[1672957365469,6.80090914,1252.4,1252.3,1.19770587]
[1672957365891,6.80090914,1252.4,1252.2,2.99426503]
[1672957367364,3.59310914,1252.4,1252.2,2.99426503]
[1672957367573,6.80090914,1252.4,1252.2,2.99426503]
[1672957367783,3.59310914,1252.4,1252.2,2.99426503]
[1672957367995,6.80090914,1252.4,1252.2,2.99426503]
[1672957369154,6.80090914,1252.4,1252.3,1.19770587]
[1672957371366,3.59310914,1252.4,1252.3,1.19770587]
[1672957371568,6.80090914,1252.4,1252.3,1.19770587]
[1672957371777,3.59310914,1252.4,1252.3,1.19770587]
[1672957371988,6.80090914,1252.4,1252.3,1.19770587]
[1672957373674,3.59310914,1252.4,1252.3,1.19770587]
[1672957374303,6.80090914,1252.4,1252.3,1.19770587]
[1672957374719,3.59310914,1252.4,1252.3,1.19770587]
[1672957374930,6.80090914,1252.4,1252.3,1.19770587]
[1672957375140,6.80090914,1252.4,1252.3,1.19442781]
[1672957376721,3.59310914,1252.4,1252.3,1.19442781]
[1672957377464,6.80090914,1252.4,1252.3,1.19442781]
[1672957377875,3.59310914,1252.4,1252.3,1.19442781]
[1672957378092,6.80090914,1252.4,1252.3,1.19442781]
[1672957378306,3.59310914,1252.4,1252.3,1.19442781]
[1672957378514,6.80090914,1252.4,1252.3,1.19442781]
[1672957378725,3.59310914,1252.4,1252.3,1.19442781]
[1672957379256,6.80090914,1252.4,1252.3,1.19442781]
[1672957379773,3.59310914,1252.4,1252.3,1.19442781]
[1672957380721,6.80090914,1252.4,1252.3,1.19442781]
[1672957381246,3.59310914,1252.4,1252.3,1.19442781]
[1672957381457,6.80090914,1252.4,1252.3,1.19442781]
[1672957381664,3.59310914,1252.4,1252.3,1.19442781]
[1672957381881,6.80090914,1252.4,1252.3,1.19442781]
[1672957383246,3.59310914,1252.4,1252.3,1.19442781]
[1672957383559,6.80090914,1252.4,1252.3,1.19442781]
[1672957383766,10.98571082,1252.4,1252.3,1.19442781]
[1672957384717,10.98571082,1252.4,1252.1,1.79655916]
[1672957385028,3.59310914,1252.3,1252.1,1.79655916]
[1672957385555,6.80090914,1252.3,1252.1,1.79655916]
[1672957386186,6.80090914,1252.3,1252.2,1.79655916]
[1672957386818,3.59310914,1252.3,1252.2,1.79655916]
[1672957387021,6.80090914,1252.3,1252.2,1.79655916]
[1672957389235,3.59310914,1252.3,1252.2,1.79655916]
[1672957389443,6.80090914,1252.3,1252.2,1.79655916]
[1672957389656,3.59310914,1252.3,1252.2,1.79655916]
[1672957389969,6.80090914,1252.3,1252.2,1.79655916]
[1672957390807,3.59310914,1252.3,1252.2,1.79655916]
[1672957391443,6.80090914,1252.3,1252.2,1.79655916]
[1672957391654,3.59310914,1252.3,1252.2,1.79655916]
[1672957392075,6.80090914,1252.3,1252.2,1.79655916]
[1672957392281,3.59310914,1252.3,1252.2,1.79655916]
[1672957392598,6.80090914,1252.3,1252.2,1.79655916]
[1672957393332,3.59310914,1252.3,1252.2,1.79655916]
[1672957393545,6.80090914,1252.3,1252.2,1.79655916]
[1672957393749,3.59310914,1252.3,1252.2,1.79655916]
[1672957394067,6.80090914,1252.3,1252.2,1.79655916]
[1672957394699,3.59310914,1252.3,1252.2,1.79655916]
[1672957394912,6.80090914,1252.3,1252.2,1.79655916]
[1672957395223,3.59310914,1252.3,1252.2,1.79655916]
[1672957395639,6.80090914,1252.3,1252.2,1.79655916]
[1672957396381,3.2078,1252.3,1252.2,1.79655916]
[1672957396801,10.98571082,1252.4,1252.2,1.79655916]
[1672957397956,7.77791082,1252.4,1252.2,1.79655916]
[1672957398177,10.98571082,1252.4,1252.2,1.79655916]
[1672957400484,6.80090914,1252.4,1252.2,1.79655916]
[1672957401108,3.59310914,1252.4,1252.2,1.79655916]
[1672957401325,10.98571082,1252.4,1252.2,1.79655916]
[1672957401531,3.59310914,1252.3,1252.2,1.79655916]
[1672957401740,6.80090914,1252.3,1252.2,1.79655916]
[1672957402261,3.59310914,1252.3,1252.2,1.79655916]
[1672957402471,6.80090914,1252.3,1252.2,1.79655916]
[1672957402905,3.59310914,1252.3,1252.2,1.79655916]
[1672957403218,6.80090914,1252.3,1252.2,1.79655916]
[1672957403637,3.2078,1252.3,1252.2,1.79655916]
[1672957404163,7.77791082,1252.4,1252.2,1.79655916]
[1672957404377,3.2078,1252.3,1252.2,1.79655916]
[1672957406793,7.77791082,1252.4,1252.2,1.79655916]
[1672957407004,3.2078,1252.3,1252.2,1.79655916]
[1672957407319,3.59310914,1252.3,1252.2,1.79655916]
[1672957407519,6.80090914,1252.3,1252.2,1.79655916]
[1672957407732,3.59310914,1252.3,1252.2,1.79655916]
[1672957408160,6.80090914,1252.3,1252.2,1.79655916]
[1672957408373,3.59310914,1252.3,1252.2,1.79655916]
[1672957408571,6.80090914,1252.3,1252.2,1.79655916]
[1672957410161,3.59310914,1252.3,1252.2,1.79655916]
[1672957410372,3.2078,1252.3,1252.2,1.79655916]
[1672957411213,7.77791082,1252.4,1252.2,1.79655916]
[1672957411424,3.2078,1252.3,1252.2,1.79655916]
[1672957411734,6.80090914,1252.3,1252.2,1.79655916]
[1672957411942,3.59310914,1252.3,1252.2,1.79655916]
[1672957412158,6.80090914,1252.3,1252.2,1.79655916]
[1672957413211,3.59310914,1252.3,1252.2,1.79655916]
[1672957414262,6.80090914,1252.3,1252.2,1.79655916]
[1672957414779,3.2078,1252.3,1252.2,1.79655916]
[1672957415631,6.80090914,1252.3,1252.2,1.79655916]
[1672957418986,3.59310914,1252.3,1252.2,1.79655916]
[1672957419197,6.80090914,1252.3,1252.2,1.79655916]
[1672957419730,3.59310914,1252.3,1252.2,1.79655916]
[1672957419940,6.80090914,1252.3,1252.2,1.79655916]
[1672957420150,6.7939862,1252.3,1252.2,1.79655916]
[1672957420565,3.5861862,1252.3,1252.2,1.79655916]
[1672957421097,6.7939862,1252.3,1252.2,1.79655916]
[1672957422354,3.5861862,1252.3,1252.2,1.79655916]
[1672957422564,6.7939862,1252.3,1252.2,1.79655916]
[1672957423305,3.5861862,1252.3,1252.2,1.79655916]
[1672957423516,6.7939862,1252.3,1252.2,1.79655916]
[1672957425512,3.5861862,1252.3,1252.2,1.79655916]
[1672957425935,6.7939862,1252.3,1252.2,1.79655916]
[1672957426252,3.5861862,1252.3,1252.2,1.79655916]
[1672957426563,6.7939862,1252.3,1252.2,1.79655916]
[1672957429195,3.5861862,1252.3,1252.2,1.79655916]
[1672957429404,6.7939862,1252.3,1252.2,1.79655916]
[1672957430767,3.5861862,1252.3,1252.2,1.79655916]
[1672957430979,6.7939862,1252.3,1252.2,1.79655916]
[1672957431188,3.5861862,1252.3,1252.2,1.79655916]
[1672957431616,6.7939862,1252.3,1252.2,1.79655916]
[1672957432141,3.5861862,1252.3,1252.2,1.79655916]
[1672957432352,6.7939862,1252.3,1252.2,1.79655916]
[1672957432872,3.5861862,1252.3,1252.2,1.79655916]
[1672957433190,6.7939862,1252.3,1252.2,1.79655916]
[1672957434241,3.5861862,1252.3,1252.2,1.79655916]
[1672957434553,6.7939862,1252.3,1252.2,1.79655916]
[1672957435917,6.7939862,1252.3,1252.1,4.18926805]
[1672957437815,3.5861862,1252.3,1252.1,4.18926805]
[1672957438028,6.7939862,1252.3,1252.1,4.18926805]
[1672957442321,10.97878788,1252.3,1252.1,1.79655916]
[1672957445280,6.7939862,1252.3,1252.1,1.79655916]
[1672957446219,10.97878788,1252.3,1252.1,1.79655916]
[1672957447278,3.5861862,1252.3,1252.1,1.79655916]
[1672957447483,6.7939862,1252.3,1252.1,1.79655916]
[1672957451060,3.5861862,1252.3,1252.1,1.79655916]
[1672957451271,6.7939862,1252.3,1252.1,1.79655916]
[1672957452214,3.5861862,1252.3,1252.1,1.79655916]
[1672957452429,6.7939862,1252.3,1252.1,1.79655916]
[1672957452963,10.97878788,1252.3,1252.1,1.79655916]
[1672957453485,6.7939862,1252.3,1252.1,1.79655916]
[1672957454222,3.5861862,1252.3,1252.1,1.79655916]
[1672957454423,6.7939862,1252.3,1252.1,1.79655916]
[1672957455272,3.5861862,1252.3,1252.1,1.79655916]
[1672957455483,6.7939862,1252.3,1252.1,1.79655916]
[1672957456736,3.5861862,1252.3,1252.1,1.79655916]
[1672957456946,6.7939862,1252.3,1252.1,1.79655916]
[1672957457898,3.5861862,1252.3,1252.1,1.79655916]
[1672957458114,6.7939862,1252.3,1252.1,1.79655916]
[1672957458740,3.5861862,1252.3,1252.1,1.79655916]
[1672957459158,6.7939862,1252.3,1252.1,1.79655916]
[1672957460314,3.5861862,1252.3,1252.1,1.79655916]
[1672957460533,6.7939862,1252.3,1252.1,1.79655916]
[1672957462212,3.5861862,1252.3,1252.1,1.79655916]
[1672957462632,6.7939862,1252.3,1252.1,1.79655916]
[1672957462944,3.5861862,1252.3,1252.1,1.79655916]
[1672957463156,6.7939862,1252.3,1252.1,1.79655916]
[1672957463361,3.5861862,1252.3,1252.1,1.79655916]
[1672957463574,6.7939862,1252.3,1252.1,1.79655916]
[1672957464105,3.5861862,1252.3,1252.1,1.79655916]
[1672957464319,6.7939862,1252.3,1252.1,1.79655916]
[1672957465578,3.5861862,1252.3,1252.1,1.79655916]
[1672957465788,6.7939862,1252.3,1252.1,1.79655916]
[1672957467993,10.97878788,1252.3,1252.1,1.79655916]
[1672957468417,6.7939862,1252.3,1252.1,1.79655916]
[1672957468618,3.5861862,1252.3,1252.1,1.79655916]
[1672957468938,10.97878788,1252.3,1252.1,1.79655916]
[1672957472830,7.77098788,1252.3,1252.1,1.79655916]
[1672957473563,3.2078,1252.2,1252.1,1.79655916]
[1672957474097,6.7939862,1252.2,1252.1,1.79655916]
[1672957474408,3.2078,1252.2,1252.1,1.79655916]
[1672957474830,7.77098788,1252.3,1252.1,1.79655916]
[1672957475035,3.2078,1252.2,1252.1,1.79655916]
[1672957475253,3.5861862,1252.2,1252.1,1.79655916]
[1672957475986,6.7939862,1252.2,1252.1,1.79655916]
[1672957476724,3.5861862,1252.2,1252.1,1.79655916]
[1672957477454,6.7939862,1252.2,1252.1,1.79655916]
[1672957477877,3.5861862,1252.2,1252.1,1.79655916]
[1672957478191,6.7939862,1252.2,1252.1,1.79655916]
[1672957478720,3.5861862,1252.2,1252.1,1.79655916]
[1672957479246,6.7939862,1252.2,1252.1,1.79655916]
[1672957479759,3.5861862,1252.2,1252.1,1.79655916]
[1672957480290,6.7939862,1252.2,1252.1,1.79655916]
[1672957480501,3.5861862,1252.2,1252.1,1.79655916]
[1672957480709,6.7939862,1252.2,1252.1,1.79655916]
[1672957481023,3.5861862,1252.2,1252.1,1.79655916]
[1672957481232,6.7939862,1252.2,1252.1,1.79655916]
[1672957482496,3.5861862,1252.2,1252.1,1.79655916]
[1672957482706,6.7939862,1252.2,1252.1,1.79655916]
[1672957482932,3.5861862,1252.2,1252.1,1.79655916]
[1672957483130,6.7939862,1252.2,1252.1,1.79655916]
[1672957483649,3.5861862,1252.2,1252.1,1.79655916]
[1672957483863,6.7939862,1252.2,1252.1,1.79655916]
[1672957485326,3.5861862,1252.2,1252.1,1.79655916]
[1672957485536,6.7939862,1252.2,1252.1,1.79655916]
[1672957485844,3.5861862,1252.2,1252.1,1.79655916]
[1672957486381,6.7939862,1252.2,1252.1,1.79655916]
[1672957487959,3.5861862,1252.2,1252.1,1.79655916]
[1672957488377,6.7939862,1252.2,1252.1,1.79655916]
[1672957488694,3.5861862,1252.2,1252.1,1.79655916]
[1672957489011,6.7939862,1252.2,1252.1,1.79655916]
[1672957491951,3.5861862,1252.2,1252.1,1.79655916]
[1672957492162,6.7939862,1252.2,1252.1,1.79655916]
[1672957493638,3.5861862,1252.2,1252.1,1.79655916]
[1672957499412,3.5861862,1252.2,1252.1,1.79352547]
[1672957501615,6.7939862,1252.2,1252.1,1.79352547]
[1672957501825,3.5861862,1252.2,1252.1,1.79352547]
[1672957502038,6.7939862,1252.2,1252.1,1.79352547]
[1672957503092,3.5861862,1252.2,1252.1,1.79352547]
[1672957503303,6.7939862,1252.2,1252.1,1.79352547]
[1672957503939,6.7939862,1252.2,1252.1,2.99179525]
[1672957505504,3.5861862,1252.2,1252.1,1.79352547]
[1672957505716,6.7939862,1252.2,1252.1,1.79352547]
[1672957506555,3.5861862,1252.2,1252.1,1.79352547]
[1672957506873,6.7939862,1252.2,1252.1,1.79352547]
[1672957507399,6.7939862,1252.2,1252.1,2.99179273]
[1672957508135,3.5861862,1252.2,1252.1,2.99179273]
[1672957508346,6.7939862,1252.2,1252.1,2.99179273]
[1672957508552,3.5861862,1252.2,1252.1,2.99179273]
[1672957508758,6.7939862,1252.2,1252.1,2.99179273]
[1672957508970,3.5861862,1252.2,1252.1,2.99179273]
[1672957509181,6.7939862,1252.2,1252.1,2.99179273]
[1672957509393,6.7939862,1252.2,1252.1,2.99180579]
[1672957510343,3.5861862,1252.2,1252.1,2.99180579]
[1672957510659,6.7939862,1252.2,1252.1,2.99180579]
[1672957514440,3.2078,1252.2,1252.1,1.79352547]
[1672957515697,10.97878788,1252.3,1252.1,1.79352547]
[1672957515907,10.97878788,1252.3,1252.2,1.19819665]
[1672957517910,7.77098788,1252.3,1252.2,1.19819665]
[1672957518227,10.97878788,1252.3,1252.2,1.19819665]
[1672957519693,7.39260168,1252.3,1252.2,1.19819665]
[1672957520541,10.98537851,1252.3,1252.2,1.19819665]
[1672957522636,7.77757851,1252.3,1252.2,1.19819665]
[1672957522845,10.98537851,1252.3,1252.2,1.19819665]
[1672957523052,7.39260168,1252.3,1252.2,1.19819665]
[1672957524220,10.98512145,1252.3,1252.2,1.19819665]
[1672957524849,7.39260168,1252.3,1252.2,1.19819665]
[1672957525062,10.98521126,1252.3,1252.2,1.19819665]
[1672957525268,7.39260168,1252.3,1252.2,1.19819665]
[1672957526011,4.18480168,1252.3,1252.2,1.19819665]
[1672957526222,7.39260168,1252.3,1252.2,1.19819665]
[1672957526851,4.18480168,1252.3,1252.2,1.19819665]
[1672957527167,7.39260168,1252.3,1252.2,1.19819665]
[1672957528114,4.18480168,1252.3,1252.2,1.19819665]
[1672957528324,7.39260168,1252.3,1252.2,1.19819665]
[1672957528535,4.18480168,1252.3,1252.2,1.19819665]
[1672957528740,7.39260168,1252.3,1252.2,1.19819665]
[1672957531161,4.18480168,1252.3,1252.2,1.19819665]
[1672957531372,7.39260168,1252.3,1252.2,1.19819665]
[1672957533162,4.18480168,1252.3,1252.2,1.19819665]
[1672957533472,7.39260168,1252.3,1252.2,1.19819665]
[1672957533679,4.18480168,1252.3,1252.2,1.19819665]
[1672957533894,7.39260168,1252.3,1252.2,1.19819665]
[1672957537571,4.18480168,1252.3,1252.2,1.19819665]
[1672957537782,7.39260168,1252.3,1252.2,1.19819665]
[1672957539358,4.18480168,1252.3,1252.2,1.19819665]
[1672957539570,7.39260168,1252.3,1252.2,1.19819665]
[1672957541255,4.18480168,1252.3,1252.2,1.19819665]
[1672957541564,7.39260168,1252.3,1252.2,1.19819665]
[1672957542933,4.18480168,1252.3,1252.2,1.19819665]
[1672957543250,7.39260168,1252.3,1252.2,1.19819665]
[1672957543982,4.18480168,1252.3,1252.2,1.19819665]
[1672957544198,7.39260168,1252.3,1252.2,1.19819665]
[1672957544828,4.18480168,1252.3,1252.2,1.19819665]
[1672957545137,7.39260168,1252.3,1252.2,1.19819665]
[1672957546827,4.18480168,1252.3,1252.2,1.19819665]
[1672957547139,7.39260168,1252.3,1252.2,1.19819665]
[1672957547356,4.18480168,1252.3,1252.2,1.19819665]
[1672957547668,7.39260168,1252.3,1252.2,1.19819665]
[1672957548093,4.18480168,1252.3,1252.2,1.19819665]
[1672957548301,7.39260168,1252.3,1252.2,1.19819665]
[1672957552292,4.18480168,1252.3,1252.2,1.19819665]
[1672957552712,7.39260168,1252.3,1252.2,1.19819665]
[1672957554917,4.18480168,1252.3,1252.2,1.19819665]
[1672957555233,7.39260168,1252.3,1252.2,1.19819665]
[1672957555761,4.18480168,1252.3,1252.2,1.19819665]
[1672957555973,7.39260168,1252.3,1252.2,1.19819665]
[1672957556384,4.18480168,1252.3,1252.2,1.19819665]
[1672957556603,7.39260168,1252.3,1252.2,1.19819665]
[1672957557550,4.18480168,1252.3,1252.2,1.19819665]
[1672957557767,7.39260168,1252.3,1252.2,1.19819665]
[1672957558178,4.18480168,1252.3,1252.2,1.19819665]
[1672957558395,7.39260168,1252.3,1252.2,1.19819665]
[1672957558602,4.18480168,1252.3,1252.2,1.19819665]
[1672957558809,7.39260168,1252.3,1252.2,1.19819665]
[1672957560597,4.18480168,1252.3,1252.2,1.19819665]
[1672957561020,7.39260168,1252.3,1252.2,1.19819665]
[1672957561221,4.18480168,1252.3,1252.2,1.19819665]
[1672957561434,7.39260168,1252.3,1252.2,1.19819665]
[1672957561649,4.18480168,1252.3,1252.2,1.19819665]
[1672957561855,7.39260168,1252.3,1252.2,1.19819665]
[1672957562493,4.18480168,1252.3,1252.2,1.19819665]
[1672957562702,7.39260168,1252.3,1252.2,1.19819665]
[1672957562913,10.98740164,1252.3,1252.2,1.19819665]
[1672957563339,6.80259996,1252.3,1252.2,1.19819665]
[1672957565646,10.98740164,1252.3,1252.2,1.19819665]
[1672957567014,7.77960164,1252.3,1252.2,1.19819665]
[1672957567329,10.98740164,1252.3,1252.2,1.19819665]
[1672957567539,7.77960164,1252.3,1252.2,1.19819665]
[1672957567751,10.98740164,1252.3,1252.2,1.19819665]
[1672957567962,7.77960164,1252.3,1252.2,1.19819665]
[1672957568173,10.98740164,1252.3,1252.2,1.19819665]
[1672957568592,7.77960164,1252.3,1252.2,1.19819665]
[1672957568812,10.98740164,1252.3,1252.2,1.19819665]
[1672957569021,7.77960164,1252.3,1252.2,1.19819665]
[1672957569234,10.98740164,1252.3,1252.2,1.19819665]
[1672957569968,6.80259996,1252.3,1252.2,1.19819665]
[1672957572503,3.59479996,1252.3,1252.2,1.19819665]
[1672957572814,6.80259996,1252.3,1252.2,1.19819665]
[1672957574917,3.59479996,1252.3,1252.2,1.19819665]
[1672957575127,6.80259996,1252.3,1252.2,1.19819665]
[1672957577752,3.59479996,1252.3,1252.2,1.19819665]
[1672957577964,6.80259996,1252.3,1252.2,1.19819665]
[1672957578278,3.59479996,1252.3,1252.2,1.19819665]
[1672957578489,6.80259996,1252.3,1252.2,1.19819665]
[1672957578911,3.59479996,1252.3,1252.2,1.19819665]
[1672957579227,6.80259996,1252.3,1252.2,1.19819665]
[1672957579436,3.59479996,1252.3,1252.2,1.19819665]
[1672957579647,6.80259996,1252.3,1252.2,1.19819665]
[1672957580699,3.59479996,1252.3,1252.2,1.19819665]
[1672957580910,6.80259996,1252.3,1252.2,1.19819665]
[1672957583844,3.59479996,1252.3,1252.2,1.19819665]
[1672957584055,6.80259996,1252.3,1252.2,1.19819665]
[1672957586267,3.59479996,1252.3,1252.2,1.19819665]
[1672957586685,6.80259996,1252.3,1252.2,1.19819665]
[1672957588691,10.98740164,1252.3,1252.2,1.19819665]
[1672957589312,7.77960164,1252.3,1252.2,1.19819665]
[1672957589635,10.98740164,1252.3,1252.2,1.19819665]
[1672957590371,7.77960164,1252.3,1252.2,1.19819665]
[1672957590581,10.98740164,1252.3,1252.2,1.19819665]
[1672957590894,6.80259996,1252.3,1252.2,1.19819665]
[1672957591105,10.98740164,1252.3,1252.2,1.19819665]
[1672957592680,7.77960164,1252.3,1252.2,1.19819665]
[1672957592994,10.98740164,1252.3,1252.2,1.19819665]
[1672957593205,7.77960164,1252.3,1252.2,1.19819665]
[1672957593524,10.98740164,1252.3,1252.2,1.19819665]
[1672957593941,7.77960164,1252.3,1252.2,1.19819665]
[1672957594366,4.18480168,1252.3,1252.2,1.19819665]
[1672957594682,7.39260168,1252.3,1252.2,1.19819665]
[1672957594995,4.18480168,1252.3,1252.2,1.19819665]
[1672957595207,7.39260168,1252.3,1252.2,1.19819665]
[1672957596040,4.18480168,1252.3,1252.2,1.19819665]
[1672957596247,7.39260168,1252.3,1252.2,1.19819665]
[1672957599932,4.18480168,1252.3,1252.2,1.19819665]
[1672957600136,7.39260168,1252.3,1252.2,1.19819665]
[1672957600563,4.18480168,1252.3,1252.2,1.19819665]
[1672957601298,7.39260168,1252.3,1252.2,1.19819665]
[1672957601512,4.18480168,1252.3,1252.2,1.19819665]
[1672957601827,7.39260168,1252.3,1252.2,1.19819665]
[1672957602573,4.18480168,1252.3,1252.2,1.19819665]
[1672957603199,7.39260168,1252.3,1252.2,1.19819665]